bitfinex/quotes_BTCUSD_20260126
["timestamp","ask_amount","ask_price","bid_price","bid_amount"]
[1769451414449,0.01137759,87892.0,87858.0,0.056982]
[1769451414450,0.01137798,87889.0,87876.0,0.02431538]
[1769451414647,0.03,87887.0,87876.0,0.02431538]
[1769451415627,0.03,87886.0,87876.0,0.02431538]
[1769451415827,0.03,87886.0,87877.0,0.05886302]
[1769451416062,0.03,87886.0,87876.0,0.02431538]
[1769451416731,0.03,87885.0,87876.0,0.02431538]
[1769451416928,0.01137772,87891.0,87876.0,0.64182879]
[1769451417169,0.01137772,87891.0,87877.0,0.02431538]
[1769451417381,0.02111842,87897.0,87877.0,0.66614417]
[1769451417791,0.0303235,87896.0,87878.0,0.06661442]
[1769451417932,0.0303235,87896.0,87882.0,0.64182879]
[1769451418286,0.0303235,87896.0,87887.0,0.02431538]
[1769451418803,0.03,87895.0,87887.0,0.02431538]
[1769451419143,0.03,87895.0,87889.0,0.02431538]
[1769451419349,0.00594204,87928.0,87892.0,0.03674275]
[1769451419682,0.00594204,87928.0,87915.0,0.02431538]
[1769451419997,0.0003235,87935.0,87910.0,0.47847936]
[1769451419998,0.0003235,87935.0,87920.0,0.64182879]
[1769451420323,0.0003235,87935.0,87923.0,0.02431538]
[1769451420524,0.0003235,87935.0,87918.0,0.22056]
[1769451420525,0.03,87927.0,87918.0,0.22056]
[1769451420833,0.03,87927.0,87919.0,0.66388479]
[1769451420949,0.03,87927.0,87920.0,0.02431538]
[1769451421151,0.03,87927.0,87922.0,0.64182879]
[1769451421356,0.01137242,87932.0,87919.0,0.022056]
[1769451421357,0.03,87931.0,87923.0,0.02431538]
[1769451421554,0.03,87921.0,87901.0,0.02431538]
[1769451421756,0.03,87921.0,87913.0,0.64182879]
[1769451421952,0.03,87921.0,87914.0,0.02431538]
[1769451422158,0.01137216,87934.0,87917.0,0.64182879]
[1769451422354,0.02394083,87935.0,87917.0,0.66614417]
[1769451422560,0.02394083,87935.0,87918.0,0.70844321]
[1769451422819,0.03,87934.0,87918.0,0.70844321]
[1769451423366,0.03,87931.0,87918.0,0.70844321]
[1769451423598,0.03,87931.0,87918.0,0.64182879]
[1769451424199,0.0002,87936.0,87920.0,0.47847936]
[1769451424398,0.03,87950.0,87932.0,0.64182879]
[1769451424668,0.04137009,87950.0,87934.0,0.66614417]
[1769451424831,0.03,87950.0,87934.0,0.66614417]
[1769451425171,0.04137009,87950.0,87934.0,0.66614417]
[1769451425456,0.03,87948.0,87935.0,0.02431538]
[1769451425750,0.03,87948.0,87936.0,0.66614417]
[1769451425904,0.03,87948.0,87937.0,0.06661442]
[1769451426105,0.03,87948.0,87937.0,0.64182879]
[1769451426310,0.03,87947.0,87937.0,0.64182879]
[1769451426712,0.0113688,87960.0,87940.0,0.02431538]
[1769451426921,0.63480049,87969.0,87960.0,0.01]
[1769451427115,0.01730916,87973.0,87960.0,0.00944994]
[1769451427116,0.00594204,87973.0,87960.0,0.00944994]
[1769451427470,0.03,87973.0,87960.0,0.00881292]
[1769451427671,0.01136505,87989.0,87961.0,0.64182879]
[1769451427814,0.01236479,87991.0,87964.0,0.02431538]
[1769451427815,0.63480049,87990.0,87964.0,0.02431538]
[1769451428021,0.001,87991.0,87967.0,0.64182879]
[1769451428022,0.01136557,87985.0,87967.0,0.64182879]
[1769451428243,0.0113657,87984.0,87967.0,0.66614417]
[1769451428536,0.001,87991.0,87958.0,0.17492]
[1769451428537,0.03,87981.0,87972.0,0.02431538]
[1769451428744,0.03,87981.0,87973.0,0.02431538]
[1769451428946,0.03,87981.0,87973.0,0.64182879]
[1769451429140,0.03,87981.0,87975.0,0.64182879]
[1769451429345,0.03,87980.0,87975.0,0.64182879]
[1769451429545,0.03,87980.0,87977.0,0.66614417]
[1769451429814,0.001,87991.0,87981.0,0.64182879]
[1769451429934,0.00652566,87992.0,87981.0,0.64141034]
[1769451430126,0.01136492,87990.0,87981.0,0.64141034]
[1769451430392,0.03,87989.0,87981.0,0.66572572]
[1769451430882,0.03,87989.0,87981.0,0.66508864]
[1769451431088,0.03,87989.0,87981.0,0.64077326]
[1769451431319,0.04136505,87989.0,87977.0,0.06661442]
[1769451431481,0.03,87987.0,87977.0,0.64182879]
[1769451431650,0.03,87987.0,87978.0,0.02431538]
[1769451431851,0.03,87987.0,87980.0,0.66614417]
[1769451432245,0.01136428,87995.0,87980.0,0.64182879]
[1769451432449,0.0001,87998.0,87983.0,0.02431538]
[1769451432762,0.0001,87998.0,87987.0,0.02431538]
[1769451432763,0.03,87997.0,87987.0,0.02431538]
[1769451433097,0.03,87997.0,87987.0,0.66614417]
[1769451433310,9.98308397,88000.0,87998.0,0.64182879]
[1769451433311,9.61415744,88000.0,87998.0,0.64182879]
[1769451433535,9.61415744,88000.0,87998.0,0.02431538]
[1769451433536,4.55394071,88000.0,87998.0,0.02431538]
[1769451433755,4.5213436,88000.0,87999.0,0.02431538]
[1769451433983,4.5213436,88000.0,87984.0,0.02431538]
[1769451434118,4.5213436,88000.0,87985.0,0.02431538]
[1769451434635,4.5213436,88000.0,87998.0,0.001]
[1769451434954,4.5213436,88000.0,87999.0,0.02431538]
[1769451436309,4.51253068,88000.0,87999.0,0.02431538]
[1769451437309,4.47833068,88000.0,87999.0,0.02431538]
[1769451437511,4.00058976,88000.0,87999.0,0.02431538]
[1769451437712,2.75119287,88000.0,87999.0,0.01252277]
[1769451437932,2.71706085,88000.0,87999.0,0.02531538]
[1769451438224,2.68292883,88000.0,87999.0,0.02431538]
[1769451438428,2.64879681,88000.0,87999.0,0.02431538]
[1769451438626,2.60898385,88000.0,87999.0,0.02531538]
[1769451438850,2.55768385,88000.0,87999.0,0.02531538]
[1769451439051,2.27334641,88000.0,87999.0,0.01061512]
[1769451439250,1.45339803,88000.0,87999.0,0.03354683]
[1769451439472,1.40779803,88000.0,87999.0,0.01061512]
[1769451439676,1.36219803,88000.0,87999.0,0.00961512]
[1769451439896,1.25970629,88000.0,87999.0,0.00961512]
[1769451440124,0.00038488,87995.0,87994.0,0.02293171]
[1769451440466,0.00038488,87995.0,87985.0,0.02293171]
[1769451441057,0.03,87990.0,87985.0,0.02293171]
[1769451442090,0.03,87984.0,87972.0,0.02293171]
[1769451442270,0.03,87984.0,87974.0,0.02293171]
[1769451443116,0.03,87983.0,87974.0,0.02293171]
[1769451444220,0.03,87982.0,87975.0,0.01136686]
[1769451444420,0.03,87982.0,87976.0,0.01136673]
[1769451444584,1.22394839,88000.0,87984.0,0.0113657]
[1769451444781,1.22394839,88000.0,87990.0,0.47847936]
[1769451444979,1.22394839,88000.0,87975.0,0.03674275]
[1769451444980,1.22394839,88000.0,87992.0,0.02293171]
[1769451445188,0.03,87999.0,87992.0,0.02293171]
[1769451445624,0.03,87999.0,87975.0,0.02293171]
[1769451445802,0.03,87999.0,87981.0,0.02293171]
[1769451446001,1.22394839,88000.0,87981.0,0.02293171]
[1769451446002,0.03,87997.0,87981.0,0.02293171]
[1769451446209,0.73,87997.0,87981.0,0.02293171]
[1769451446446,0.73,87997.0,87983.0,0.02293171]
[1769451446645,0.03,87997.0,87983.0,0.02293171]
[1769451447087,0.03,87996.0,87983.0,0.02293171]
[1769451448235,0.03,87999.0,87983.0,0.02293171]
[1769451449287,0.73,87999.0,87983.0,0.02293171]
[1769451449475,0.73,87999.0,87985.0,0.02293171]
[1769451450199,0.03,87999.0,87985.0,0.02293171]
[1769451451786,1.22394839,88000.0,87999.0,0.04130231]
[1769451451976,1.22394839,88000.0,87999.0,0.03915544]
[1769451452961,1.22394839,88000.0,87999.0,0.03586253]
[1769451453169,1.22394839,88000.0,87999.0,0.04967679]
[1769451453753,1.22394839,88000.0,87999.0,0.05067679]
[1769451454068,1.22394839,88000.0,87999.0,0.03230231]
[1769451454298,1.22394839,88000.0,87999.0,0.03130231]
[1769451454501,1.22394839,88000.0,87999.0,0.03230231]
[1769451455052,1.22394839,88000.0,87982.0,0.02441717]
[1769451455053,0.00543978,87999.0,87985.0,0.04704609]
[1769451455181,0.00543978,87999.0,87985.0,0.04804609]
[1769451455587,0.00543978,87999.0,87986.0,0.02682061]
[1769451455789,0.00543978,87999.0,87987.0,0.04704609]
[1769451455982,0.70523978,87999.0,87987.0,0.04704609]
[1769451456593,1.22394839,88000.0,87990.0,0.05379307]
[1769451456932,1.22394839,88000.0,87990.0,0.001]
[1769451457137,1.22394839,88000.0,87991.0,0.06112313]
[1769451458100,1.22394839,88000.0,87992.0,0.001]
[1769451458328,1.22394839,88000.0,87993.0,0.05873527]
[1769451458530,1.22394839,88000.0,87993.0,0.056267]
[1769451459932,1.22394839,88000.0,87993.0,0.057267]
[1769451460329,1.22394839,88000.0,87993.0,0.056267]
[1769451460794,1.22394839,88000.0,87995.0,0.06012843]
[1769451461508,0.03,88019.0,87999.0,0.01136376]
[1769451461710,0.03,88019.0,88001.0,0.06012843]
[1769451462091,0.03,88019.0,88002.0,0.06817995]
[1769451462294,0.03,88019.0,88018.0,0.03674275]
[1769451462499,1e-08,88020.0,88019.0,0.06460034]
[1769451462920,1e-08,88020.0,88019.0,0.23928034]
[1769451463124,1e-08,88020.0,88019.0,0.28476034]
[1769451463732,1e-08,88020.0,88019.0,0.28676034]
[1769451463963,1e-08,88020.0,88019.0,0.31884496]
[1769451464621,0.002,88034.0,88020.0,0.07131261]
[1769451464823,0.03,88033.0,88020.0,0.07131261]
[1769451465689,0.03,88033.0,88021.0,0.07131261]
[1769451465879,0.002,88034.0,88021.0,0.07131261]
[1769451466205,0.002,88034.0,88021.0,0.07778193]
[1769451466608,0.73,88032.0,88021.0,0.07778193]
[1769451467908,0.002,88034.0,88021.0,0.07778193]
[1769451468309,0.002,88034.0,88021.0,0.08914285]
[1769451468608,0.002,88034.0,88021.0,0.09014285]
[1769451468810,0.002,88034.0,88023.0,0.08259671]
[1769451469249,0.04023847,88049.0,88023.0,0.08259671]
[1769451469450,0.03,88038.0,88023.0,0.08259671]
[1769451469652,0.03,88036.0,88023.0,0.08259671]
[1769451470000,0.03,88034.0,88023.0,0.08259671]
[1769451470322,0.03,88032.0,88025.0,0.0893869]
[1769451470519,0.03,88032.0,88015.0,0.21051366]
[1769451470520,0.85481993,88030.0,87980.0,0.04469345]
[1769451470762,0.85481993,88030.0,87983.0,0.21051366]
[1769451470763,0.03,88004.0,87983.0,0.21051366]
[1769451470943,0.68789726,88000.0,87985.0,0.04469345]
[1769451471098,0.68789726,88000.0,87977.0,0.22188026]
[1769451471099,0.68789726,88000.0,87987.0,0.04469345]
[1769451471303,0.68789726,88000.0,87989.0,0.04469345]
[1769451471572,0.68789726,88000.0,87991.0,0.04469345]
[1769451471952,0.03,87997.0,87983.0,0.00334701]
[1769451472155,0.65789726,87992.0,87981.0,0.04835082]
[1769451472369,0.03,87989.0,87981.0,0.04835082]
[1769451472574,0.00111221,87999.0,87989.0,0.01]
[1769451472771,0.65900947,87999.0,87989.0,0.01]
[1769451473087,0.65900947,87999.0,87981.0,0.04835082]
[1769451473220,0.65900947,87999.0,87982.0,0.00850936]
[1769451473419,0.03,87998.0,87982.0,0.00850936]
[1769451473662,0.03,87994.0,87982.0,0.00850936]
[1769451473864,0.03,87992.0,87982.0,0.00850936]
[1769451474680,0.68589726,87992.0,87982.0,0.00850936]
[1769451474975,0.68589726,87992.0,87983.0,0.00568602]
[1769451475382,0.47677286,87992.0,87982.0,0.00850936]
[1769451476357,0.47677286,87992.0,87980.0,0.05284927]
[1769451476752,0.00111221,87991.0,87980.0,0.05284927]
[1769451480514,0.03,87990.0,87980.0,0.05284927]
[1769451482336,0.03,87990.0,87981.0,0.06180814]
[1769451482482,0.17464,87998.0,87981.0,0.06180814]
[1769451482483,0.03,87989.0,87981.0,0.06180814]
[1769451482682,0.01136247,88009.0,87981.0,0.06180814]
[1769451482683,0.00566105,88020.0,87983.0,0.40532408]
[1769451482869,0.00566105,88020.0,87982.0,0.00618081]
[1769451482870,0.17468,88019.0,87990.0,0.01136492]
[1769451483071,0.6558879,88018.0,87993.0,0.05959648]
[1769451483274,0.6558879,88018.0,87995.0,0.05959648]
[1769451483479,0.03,88017.0,87997.0,0.05959648]
[1769451483701,0.03,88013.0,87999.0,0.05959648]
[1769451483965,0.6558879,88014.0,87999.0,0.05959648]
[1769451484094,0.65490269,88014.0,87999.0,0.05959648]
[1769451484301,0.65490269,88014.0,88000.0,0.00739358]
[1769451484724,0.65490269,88014.0,88001.0,0.00221087]
[1769451484906,0.65490269,88014.0,88000.0,0.00739358]
[1769451485121,0.65490269,88014.0,87999.0,0.05959648]
[1769451486575,0.65490269,88014.0,88001.0,0.06184589]
[1769451486800,0.82481993,88030.0,88001.0,0.06184589]
[1769451487022,0.82481993,88030.0,87996.0,0.03674275]
[1769451487023,0.03,88027.0,88011.0,0.01136221]
[1769451487236,0.03,88027.0,88015.0,0.06184589]
[1769451487466,0.03,88027.0,88017.0,0.06184589]
[1769451487681,0.17468,88043.0,88024.0,0.06184589]
[1769451487889,0.8305679,88043.0,88024.0,0.06184589]
[1769451488105,0.03,88040.0,88025.0,0.06409515]
[1769451488334,0.03,88038.0,88025.0,0.06409515]
[1769451489787,0.6558879,88039.0,88013.0,0.03204758]
[1769451489996,0.03,88034.0,88014.0,0.03204758]
[1769451490326,0.03,88034.0,88016.0,0.03204758]
[1769451490528,0.03,88032.0,88018.0,0.03204758]
[1769451491994,0.6558879,88041.0,88020.0,0.03204758]
[1769451492212,0.0001347,88048.0,88019.0,0.03674275]
[1769451492213,0.0001347,88048.0,88033.0,0.04810212]
[1769451492414,0.6503296,88056.0,88037.0,0.03204758]
[1769451492612,0.6503296,88056.0,88039.0,0.03204758]
[1769451493096,0.03,88055.0,88040.0,0.03204758]
[1769451493437,0.01729055,88071.0,88051.0,0.41186759]
[1769451493438,0.00593608,88071.0,88051.0,0.41186759]
[1769451493641,0.00593608,88071.0,88053.0,0.41186759]
[1769451493883,0.6558879,88076.0,88056.0,0.03199758]
[1769451494062,0.03,88075.0,88058.0,0.41186759]
[1769451494262,0.03,88075.0,88061.0,0.03674275]
[1769451494457,0.03,88075.0,88062.0,0.03424655]
[1769451495118,0.03,88074.0,88062.0,0.03424655]
[1769451496400,0.6558879,88077.0,88062.0,0.03424655]
[1769451496401,0.03,88076.0,88062.0,0.03424655]
[1769451496594,0.6858879,88076.0,88062.0,0.03424655]
[1769451496827,0.03,88069.0,88062.0,0.03424655]
[1769451496943,0.6858879,88069.0,88062.0,0.03424655]
[1769451498061,0.03,88068.0,88062.0,0.03424655]
[1769451498722,0.6558879,88076.0,88067.0,0.01135499]
[1769451498926,0.82481993,88105.0,88062.0,0.03424655]
[1769451498927,0.0302,88103.0,88082.0,0.03649584]
[1769451499248,0.0302,88103.0,88075.0,0.01135395]
[1769451499249,0.67925529,88142.0,88109.0,0.40839199]
[1769451499451,0.01134623,88135.0,88111.0,0.02649584]
[1769451499768,0.67925529,88134.0,88111.0,0.02649584]
[1769451499983,0.0029469,88137.0,88121.0,0.01134803]
[1769451500192,0.03,88143.0,88135.0,0.03149584]
[1769451500603,0.70925529,88143.0,88135.0,0.03149584]
[1769451500815,0.70925529,88143.0,88113.0,0.01134906]
[1769451500816,0.04548,88142.0,88052.0,0.03149584]
[1769451501038,0.01135073,88100.0,88073.0,0.03149584]
[1769451501255,0.1746,88099.0,88073.0,0.03149584]
[1769451501463,0.67925529,88096.0,88075.0,0.03149584]
[1769451502106,0.01135022,88104.0,88074.0,0.01041167]
[1769451502107,0.01134996,88106.0,88096.0,0.01]
[1769451502323,0.22004,88130.0,88081.0,0.66921473]
[1769451502324,0.67925529,88111.0,88081.0,0.66921473]
[1769451502511,0.22004,88130.0,88083.0,0.68056765]
[1769451502512,0.01134841,88118.0,88083.0,0.68056765]
[1769451502710,0.67925529,88119.0,88095.0,0.03149584]
[1769451502956,0.17456,88122.0,88094.0,0.08397233]
[1769451503142,0.67925529,88127.0,88094.0,0.08397233]
[1769451503143,0.67357627,88127.0,88095.0,0.02261982]
[1769451503539,0.01134777,88123.0,88095.0,0.02261982]
[1769451503738,0.01134803,88121.0,88095.0,0.02261982]
[1769451503898,0.65078186,88130.0,88095.0,0.02261982]
[1769451504105,0.01134906,88113.0,88095.0,0.02261982]
[1769451504315,0.69060422,88114.0,88095.0,0.02261982]
[1769451504316,0.01134893,88114.0,88095.0,0.02261982]
[1769451504523,0.67925529,88112.0,88095.0,0.02261982]
[1769451504763,0.01134944,88110.0,88095.0,0.02261982]
[1769451504967,0.17456,88113.0,88075.0,0.62247409]
[1769451504968,0.69060538,88105.0,88076.0,0.02261982]
[1769451505185,0.01135035,88103.0,88080.0,0.02261982]
[1769451505402,0.69060577,88102.0,88080.0,0.02261982]
[1769451505773,0.69060577,88102.0,88079.0,0.03632051]
[1769451505774,0.01,88080.0,88051.0,0.05678511]
[1769451506106,0.67925529,88082.0,88066.0,0.02261982]
[1769451506293,0.17452,88089.0,88066.0,0.02261982]
[1769451506446,0.67925529,88086.0,88066.0,0.02261982]
[1769451506855,0.01135228,88088.0,88066.0,0.02261982]
[1769451506856,0.69060757,88088.0,88066.0,0.02261982]
[1769451507064,0.67925529,88086.0,88066.0,0.02261982]
[1769451507261,0.67925529,88083.0,88066.0,0.02261982]
[1769451507835,0.69060834,88082.0,88066.0,0.001]
[1769451507967,0.67925529,88081.0,88066.0,0.001]
[1769451508373,0.67925529,88082.0,88066.0,0.001]
[1769451508566,0.69060834,88082.0,88066.0,0.001]
[1769451508761,0.01135318,88081.0,88057.0,0.02261982]
[1769451508966,0.67925529,88080.0,88058.0,0.00589403]
[1769451509490,0.6906086,88080.0,88058.0,0.00589403]
[1769451509692,0.6906086,88080.0,88057.0,0.02261982]
[1769451509693,0.0113537,88077.0,88057.0,0.02261982]
[1769451509897,0.01135395,88075.0,88045.0,0.02261982]
[1769451510094,0.18587408,88074.0,88045.0,0.02261982]
[1769451510295,0.86512937,88074.0,88045.0,0.02261982]
[1769451510496,0.18587408,88074.0,88047.0,0.02261982]
[1769451510835,0.03,88072.0,88047.0,0.02261982]
[1769451511053,0.70925529,88072.0,88047.0,0.02261982]
[1769451511211,0.03,88068.0,88047.0,0.02261982]
[1769451511552,0.70925529,88068.0,88047.0,0.02261982]
[1769451511769,0.70925529,88068.0,88046.0,0.00930153]
[1769451511770,0.70925529,88068.0,88049.0,0.02261982]
[1769451512098,0.01135434,88072.0,88046.0,0.00930153]
[1769451512099,0.03,88064.0,88046.0,0.00930153]
[1769451512298,0.03,88062.0,88041.0,0.02261982]
[1769451512541,0.03,88062.0,88044.0,0.02261982]
[1769451513316,0.03,88061.0,88044.0,0.02261982]
[1769451514348,0.03,88061.0,88046.0,0.02261982]
[1769451516205,0.03,88061.0,88038.0,0.02261982]
[1769451516407,0.03,88061.0,88042.0,0.02261982]
[1769451516989,0.03,88060.0,88042.0,0.02261982]
[1769451518220,0.01135499,88067.0,88038.0,0.02261982]
[1769451518221,0.03,88052.0,88038.0,0.02261982]
[1769451518845,0.03,88048.0,88031.0,0.02315762]
[1769451519058,0.01636461,88058.0,88031.0,0.02315762]
[1769451519059,0.03,88044.0,88031.0,0.02315762]
[1769451519256,0.03,88044.0,88033.0,0.02261982]
[1769451519499,0.03,88044.0,88035.0,0.02261982]
[1769451520164,0.03,88043.0,88031.0,0.0005378]
[1769451520355,0.70925529,88043.0,88032.0,0.0004305]
[1769451520572,0.70925529,88043.0,88033.0,0.001]
[1769451520946,0.02411163,88042.0,88012.0,0.1476]
[1769451521169,0.03,88043.0,88013.0,0.03632051]
[1769451521170,0.03,88028.0,88013.0,0.03632051]
[1769451521355,0.70925529,88028.0,88011.0,0.02261982]
[1769451521559,0.70925529,88028.0,88006.0,0.63383695]
[1769451521560,0.70925529,88028.0,88016.0,0.01136157]
[1769451521752,0.03,88028.0,88020.0,0.01136105]
[1769451521983,0.04534712,88055.0,88028.0,0.02261982]
[1769451522186,0.67925529,88051.0,88029.0,0.01135989]
[1769451522421,0.70925529,88050.0,88030.0,0.02261982]
[1769451522615,0.70925529,88050.0,88031.0,0.02374913]
[1769451522790,0.70925529,88050.0,88032.0,0.02077513]
[1769451522990,0.03,88050.0,88035.0,0.02261982]
[1769451523363,0.17456,88061.0,88034.0,0.63953333]
[1769451523364,0.03,88049.0,88044.0,0.01135795]
[1769451523536,0.03,88049.0,88045.0,0.02261982]
[1769451524292,0.03,88057.0,88045.0,0.02261982]
[1769451524939,0.03,88057.0,88045.0,0.03417184]
[1769451525137,0.03,88057.0,88045.0,0.02261982]
[1769451525518,0.03,88057.0,88046.0,0.02261982]
[1769451527366,0.03,88057.0,88046.0,0.02465243]
[1769451528559,0.03,88054.0,88046.0,0.02261982]
[1769451530528,0.03,88054.0,88034.0,0.63953333]
[1769451530529,0.17456,88061.0,88026.0,0.01136027]
[1769451530530,0.71635889,88053.0,88026.0,0.01136027]
[1769451530723,0.71635889,88053.0,88032.0,0.02409092]
[1769451530724,0.74033539,88053.0,88032.0,0.02409092]
[1769451531082,0.47517753,88060.0,88032.0,0.02409092]
[1769451531083,0.03,88051.0,88032.0,0.02409092]
[1769451531305,0.03,88045.0,88028.0,0.01136002]
[1769451531453,0.03,88041.0,88029.0,0.01135989]
[1769451531658,0.0896008,88089.0,88028.0,0.01136002]
[1769451531659,0.0239765,88070.0,88039.0,0.0113586]
[1769451531861,0.22004,88069.0,88042.0,0.01135821]
[1769451532207,0.71033539,88066.0,88044.0,0.01135795]
[1769451532504,0.03,88063.0,88045.0,0.02522669]
[1769451532830,0.03,88059.0,88045.0,0.02522669]
[1769451532984,0.03,88057.0,88045.0,0.02522669]
[1769451533181,0.71635889,88057.0,88046.0,0.01158524]
[1769451533816,0.71635889,88057.0,88046.0,0.01272092]
[1769451534603,0.17456,88061.0,88036.0,0.01135898]
[1769451534604,0.03,88053.0,88036.0,0.01135898]
[1769451534798,0.71635889,88053.0,88039.0,0.0113586]
[1769451535002,0.71635889,88053.0,88040.0,0.02409092]
[1769451535202,0.71635889,88053.0,88041.0,0.02409092]
[1769451535402,0.71635889,88053.0,88044.0,0.01135795]
[1769451535617,0.03,88065.0,88053.0,0.02409092]
[1769451535813,0.68066589,88066.0,88053.0,0.02409092]
[1769451536676,0.68066589,88066.0,88042.0,0.01135821]
[1769451536858,0.03,88056.0,88036.0,0.0354499]
[1769451537034,0.0239765,88057.0,88037.0,0.00113587]
[1769451537035,0.71635889,88054.0,88037.0,0.00113587]
[1769451537437,0.71635889,88054.0,88037.0,0.02522679]
[1769451537957,0.45812144,88054.0,88037.0,0.02522679]
[1769451538158,0.03,88050.0,88037.0,0.02522679]
[1769451538679,0.71635889,88050.0,88037.0,0.02522679]
[1769451538882,0.71635889,88050.0,88029.0,0.01135989]
[1769451538883,0.0239765,88046.0,88024.0,0.03545145]
[1769451539086,0.03,88042.0,88026.0,0.01136027]
[1769451539290,0.03,88042.0,88027.0,0.01831375]
[1769451539497,0.71635889,88042.0,88027.0,0.01831375]
[1769451539611,0.71635889,88040.0,88027.0,0.01831375]
[1769451540021,0.0239765,88039.0,88027.0,0.01831375]
[1769451540218,0.03,88034.0,88019.0,0.0354521]
[1769451540422,0.03,88034.0,88021.0,0.03545184]
[1769451540664,0.71033539,88043.0,88031.0,0.01135963]
[1769451540665,0.1985365,88043.0,88031.0,0.01135963]
[1769451540843,0.1985365,88043.0,88017.0,0.03632051]
[1769451540844,0.17456,88047.0,88034.0,0.67992378]
[1769451541045,0.17456,88054.0,88038.0,0.02409092]
[1769451541262,0.17456,88054.0,88039.0,0.00922461]
[1769451541263,0.68635889,88053.0,88039.0,0.00922461]
[1769451541470,0.03,88052.0,88039.0,0.02058321]
[1769451541672,0.03,88052.0,88039.0,0.00922461]
[1769451541846,0.04548,88063.0,88008.0,0.4545028]
[1769451541847,0.03,88048.0,88036.0,0.01135898]
[1769451542050,0.03,88048.0,88039.0,0.05679301]
[1769451542249,0.03,88048.0,88040.0,0.01135847]
[1769451542468,0.03,88048.0,88041.0,0.01135834]
[1769451542708,0.03,88048.0,88039.0,0.0113586]
[1769451542918,0.03,88047.0,88037.0,0.7040147]
[1769451543083,0.03,88047.0,88037.0,0.02409092]
[1769451543666,0.03,88047.0,88037.0,0.03544978]
[1769451543847,0.03,88046.0,88038.0,0.01135873]
[1769451544051,0.03,88046.0,88038.0,0.06815206]
[1769451544490,0.03,88046.0,88039.0,0.0113586]
[1769451544694,0.03,88046.0,88038.0,0.06815206]
[1769451545065,0.71033539,88054.0,88038.0,0.06815206]
[1769451545066,0.03,88045.0,88040.0,0.01135847]
[1769451545186,0.03,88045.0,88038.0,0.01235873]
[1769451545387,0.03,88045.0,88040.0,0.01135847]
[1769451545655,0.0239765,88066.0,88043.0,0.02409092]
[1769451545809,0.86091889,88065.0,88047.0,0.01135757]
[1769451546010,0.86091889,88065.0,88046.0,0.01135769]
[1769451546011,0.71635889,88064.0,88046.0,0.01135769]
[1769451546233,0.71635889,88064.0,88048.0,0.02409092]
[1769451546443,0.71635889,88064.0,88050.0,0.01135718]
[1769451546663,0.71635889,88064.0,88049.0,0.08087712]
[1769451546664,0.03,88064.0,88052.0,0.01135692]
[1769451546886,0.03,88064.0,88055.0,0.01135653]
[1769451547112,0.03,88063.0,88054.0,0.03544758]
[1769451547284,0.03,88063.0,88054.0,0.08087423]
[1769451547485,0.03,88063.0,88055.0,0.01135653]
[1769451547691,0.03,88063.0,88054.0,0.03544758]
[1769451547857,0.03,88063.0,88054.0,0.02409092]
[1769451548059,0.03,88062.0,88054.0,0.03544758]
[1769451548259,0.03,88062.0,88054.0,0.02409092]
[1769451548460,0.03,88062.0,88054.0,0.03544758]
[1769451548707,0.03,88062.0,88054.0,0.02409092]
[1769451549092,0.03,88070.0,88054.0,0.03544758]
[1769451549295,0.71635889,88070.0,88056.0,0.0113564]
[1769451549685,0.71635889,88070.0,88055.0,0.06813916]
[1769451549891,0.71635889,88070.0,88054.0,0.03544758]
[1769451550322,0.71635889,88070.0,88054.0,0.02409092]
[1769451550529,0.71635889,88070.0,88054.0,0.02509092]
[1769451550895,0.71635889,88070.0,88055.0,0.01135653]
[1769451551302,0.71635889,88070.0,88054.0,0.02509092]
[1769451551638,0.71635889,88070.0,88054.0,0.02409092]
[1769451551983,0.71635889,88070.0,88054.0,0.03544758]
[1769451552187,0.71635889,88070.0,88056.0,0.0113564]
[1769451552448,0.71635889,88070.0,88057.0,0.01135628]
[1769451552615,0.03,88072.0,88058.0,0.01135615]
[1769451552818,0.03,88072.0,88060.0,0.02409092]
[1769451552995,0.03,88072.0,88060.0,0.03544681]
[1769451553418,0.03,88072.0,88062.0,0.01135563]
[1769451553623,0.68056601,88079.0,88066.0,0.01135512]
[1769451553806,0.68056601,88079.0,88065.0,0.02409092]
[1769451554414,0.68056601,88079.0,88065.0,0.01409092]
[1769451554634,0.70454251,88079.0,88061.0,0.02253265]
[1769451555291,0.68056601,88079.0,88066.0,0.06813023]
[1769451555423,0.0001854,88090.0,88079.0,0.01]
[1769451555424,0.03,88083.0,88079.0,0.01]
[1769451555622,0.03,88083.0,88072.0,0.67992378]
[1769451555841,0.71635889,88083.0,88064.0,0.69127915]
[1769451556039,0.03,88081.0,88065.0,0.01135524]
[1769451556325,0.03,88081.0,88063.0,0.06813187]
[1769451556326,0.74033539,88081.0,88066.0,0.0408625]
[1769451556559,0.74033539,88081.0,88065.0,0.01135524]
[1769451556769,0.74033539,88081.0,88067.0,0.01135499]
[1769451557424,0.74033539,88081.0,88068.0,0.01135486]
[1769451557875,0.74033539,88081.0,88069.0,0.01135473]
[1769451558084,0.74033539,88081.0,88064.0,0.67992378]
[1769451558085,0.0001854,88090.0,88081.0,0.01]
[1769451558296,0.0001854,88090.0,88078.0,0.06812105]
[1769451558507,0.71033539,88089.0,88069.0,0.02253265]
[1769451558670,0.68462435,88087.0,88070.0,0.03632051]
[1769451558850,0.70816414,88087.0,88070.0,0.04767511]
[1769451559057,0.70816414,88087.0,88070.0,0.03632051]
[1769451559253,0.03,88084.0,88070.0,0.03632051]
[1769451559488,0.73254248,88084.0,88070.0,0.03632051]
[1769451559690,0.03,88082.0,88064.0,0.01135537]
[1769451560050,0.03,88080.0,88072.0,0.64250631]
[1769451560363,0.69693499,88090.0,88072.0,0.65386065]
[1769451560486,0.69693499,88090.0,88072.0,0.67697457]
[1769451560905,0.03,88087.0,88072.0,0.01135434]
[1769451561123,0.03,88087.0,88074.0,0.01135408]
[1769451561321,0.03,88087.0,88073.0,0.09123867]
[1769451561527,0.03,88087.0,88073.0,0.02311392]
[1769451562044,0.70900269,88087.0,88073.0,0.02311392]
[1769451562245,0.17452,88094.0,88055.0,0.01135653]
[1769451562246,0.03,88083.0,88055.0,0.01135653]
[1769451562447,0.17452,88094.0,88055.0,0.01135653]
[1769451562448,0.67900269,88078.0,88060.0,0.03632051]
[1769451562652,0.73254248,88075.0,88060.0,0.03632051]
[1769451563238,0.05353979,88071.0,88053.0,0.01135679]
[1769451563438,0.05353979,88071.0,88058.0,0.18587615]